lending/lending_fUSD_20251008
["ID","MTS","AMOUNT","RATE_DAILY","PERIOD"]
[389874630,1759883441757,-151.0,0.00023274,2]
[389874631,1759883441767,-500.0,0.00023274,2]
[389874632,1759883441777,-500.0,0.00023274,2]
[389874633,1759883441787,-500.0,0.00023274,2]
[389874634,1759883441797,-500.0,0.00023274,2]
[389874635,1759883441806,-322.6107,0.00023274,2]
[389874636,1759883441816,-500.0,0.00023274,2]
[389874637,1759883441826,-500.0,0.00023274,2]
[389874638,1759883441836,-512.50916287,0.00023274,2]
[389874639,1759883441845,-181.08010149,0.00023274,2]
[389874640,1759883441855,-3117.0,0.00023288,2]
[389874641,1759883441865,-500.0,0.00023321,2]
[389874642,1759883441875,-500.0,0.00023321,2]
[389874643,1759883441884,-500.0,0.00023321,2]
[389874644,1759883441894,-2115.19,0.00023321,2]
[389874645,1759883441903,-500.0,0.00023321,2]
[389874646,1759883441913,-500.0,0.00023321,2]
[389874647,1759883441922,-500.0,0.00023321,2]
[389874648,1759883441931,-500.0,0.00023321,2]
[389874649,1759883441941,-500.0,0.00023321,2]
[389874650,1759883441951,-500.0,0.00023321,2]
[389874651,1759883441960,-526.28,0.00023321,2]
[389874652,1759883441970,-500.0,0.00023321,2]
[389874653,1759883441982,-500.0,0.00023321,2]
[389874654,1759883441991,-500.0,0.00023321,2]
[389874655,1759883442000,-1209.38,0.00023321,2]
[389874656,1759883442010,-8260.13072239,0.00023329,2]
[389874657,1759883442019,-213.42303972,0.00023342,2]
[389874658,1759883442028,-205.0,0.00023354,2]
[389874659,1759883442037,-500.0,0.00023371,2]
[389874660,1759883442047,-1106.74,0.00023371,2]
[389874661,1759883442056,-500.0,0.00023371,2]
[389874662,1759883442066,-8565.75555911,0.00023384,2]
[389874663,1759883442075,-150.0,0.00023384,4]
[389874664,1759883442084,-150.0,0.00023384,4]
[389874665,1759883442093,-150.0,0.00023384,4]
[389874666,1759883442102,-150.0,0.00023384,4]
[389874667,1759883442111,-150.0,0.00023384,4]
[389874668,1759883442120,-160.06727978,0.00023397,2]
[389874669,1759883442129,-996.22884719,0.00023419,2]
[389874670,1759883442138,-213.42303972,0.00023425,2]
[389874671,1759883442149,-8882.6885148,0.00023439,2]
[389874672,1759883442159,-150.0,0.00023455,4]
[389874673,1759883442170,-368.61206164,0.00023471,2]
[389874674,1759883442180,-500.0,0.00023471,2]
[389874675,1759883442189,-3559.43,0.00023471,2]
[389874676,1759883442198,-938.84,0.00023471,2]
[389874677,1759883442207,-586.44409468,0.00023471,2]
[389874678,1759883442216,-500.0,0.00023471,2]
[389874679,1759883442225,-500.0,0.00023471,2]
[389874680,1759883442234,-500.0,0.00023471,2]
[389874681,1759883442244,-500.0,0.00023471,2]
[389874682,1759883442252,-500.0,0.00023471,2]
[389874683,1759883442262,-500.0,0.00023471,2]
[389874684,1759883442272,-500.0,0.00023471,2]
[389874685,1759883442281,-3729.27389048,0.00023494,2]
[389874686,1759883442290,-2701.6307487,0.000235,2]
[389874687,1759883442299,-3902.51034449,0.000235,5]
[389874688,1759883442308,-200.0,0.000235,2]
[389874689,1759883442317,-1222.0,0.00023509,2]
[389874690,1759883442326,-1530.6,0.00023513,2]
[389874691,1759883442335,-160.06727978,0.00023534,2]
[389874692,1759883442344,-213.42303972,0.00023534,2]
[389874693,1759883442354,-798.97,0.00023545,2]
[389874694,1759883442363,-1089.47209977,0.00023551,2]
[389874695,1759883442373,-1500.0,0.00023568,2]
[389874696,1759883442382,-500.0,0.00023595,2]
[389874697,1759883442391,-500.0,0.00023595,2]
[389874698,1759883442400,-500.0,0.00023595,2]
[389874699,1759883442410,-2115.19,0.00023595,2]
[389874700,1759883442418,-500.0,0.00023595,2]
[389874701,1759883442427,-500.0,0.00023595,2]
[389874702,1759883442437,-500.0,0.00023595,2]
[389874703,1759883442445,-500.0,0.00023595,2]
[389874704,1759883442455,-500.0,0.00023595,2]
[389874705,1759883442463,-500.0,0.00023595,2]
[389874706,1759883442472,-549.16,0.00023595,2]
[389874707,1759883442482,-526.28,0.00023595,2]
[389874708,1759883442491,-500.0,0.00023595,2]
[389874709,1759883442500,-500.0,0.00023595,2]
[389874710,1759883442509,-500.0,0.00023595,2]
[389874711,1759883442518,-1209.38,0.00023595,2]
[389874712,1759883442527,-213.42303972,0.00023616,2]
[389874713,1759883442537,-411.90061085,0.00023622,2]
[389874714,1759883442546,-150.0,0.00023633,4]
[389874715,1759883442556,-150.0,0.00023633,4]
[389874716,1759883442565,-150.0,0.00023633,4]
[389874717,1759883442575,-150.0,0.00023633,4]
[389874718,1759883442585,-150.0,0.00023633,4]
[389874719,1759883442594,-500.0,0.00023645,2]
[389874720,1759883442603,-1106.74,0.00023645,2]
[389874721,1759883442613,-500.0,0.00023645,2]
[389874722,1759883442622,-160.06727978,0.00023699,2]
[389874724,1759883442632,-427.0,0.00023707,2]
[389874725,1759883442642,-213.42303972,0.00023726,2]
[389874726,1759883442651,-500.0,0.00023745,2]
[389874727,1759883442660,-3559.43,0.00023745,2]
[389874728,1759883442670,-938.84,0.00023745,2]
[389874730,1759883442680,-500.0,0.00023745,2]
[389874731,1759883442689,-500.0,0.00023745,2]
[389874733,1759883442698,-500.0,0.00023745,2]
[389874735,1759883442708,-500.0,0.00023745,2]
[389874737,1759883442717,-500.0,0.00023745,2]
[389874738,1759883442726,-500.0,0.00023745,2]
[389874739,1759883442735,-500.0,0.00023745,2]
[389874740,1759883442745,-427.0,0.00023746,2]
[389874741,1759883442754,-174.7945346,0.00023767,7]
[389874742,1759883442763,-370.732329,0.00023773,2]
[389874743,1759883442773,-2701.6307487,0.0002378,2]
[389874744,1759883442783,-1222.0,0.00023782,2]
[389874745,1759883442793,-356.11899227,0.000238,2]
[389874746,1759883442803,-208.01600483,0.000238,2]
[389874747,1759883442812,-213.42303972,0.00023808,2]
[389874748,1759883442822,-150.0,0.00023811,4]
[389874749,1759883442832,-278.75,0.0002382,2]
[389874750,1759883442842,-278.75,0.00023821,2]
[389874751,1759883442851,-151.0,0.00023822,2]
[389874752,1759883442861,-427.27,0.00023836,2]
[389874753,1759883442870,-160.06727978,0.00023836,2]
[389874754,1759883442879,-500.0,0.00023869,2]
[389874755,1759883442889,-500.0,0.00023869,2]
[389874756,1759883442898,-630.96751225,0.00023869,2]
[389874757,1759883442907,-2115.19,0.00023869,2]
[389874758,1759883442916,-500.0,0.00023869,2]
[389874759,1759883442924,-500.0,0.00023869,2]
[389874760,1759883442933,-500.0,0.00023869,2]
[389874761,1759883442942,-500.0,0.00023869,2]
[389874762,1759883442951,-500.0,0.00023869,2]
[389874763,1759883442960,-500.0,0.00023869,2]
[389874764,1759883442969,-549.16,0.00023869,2]
[389874765,1759883442979,-526.28,0.00023869,2]
[389874766,1759883442988,-500.0,0.00023869,2]
[389874767,1759883442997,-500.0,0.00023869,2]
[389874768,1759883443006,-500.0,0.00023869,2]
[389874769,1759883443015,-1209.38,0.00023869,2]
[389874770,1759883443024,-150.0,0.00023882,4]
[389874771,1759883443035,-150.0,0.00023882,4]
[389874772,1759883443044,-150.0,0.00023882,4]
[389874773,1759883443053,-150.0,0.00023882,4]
[389874774,1759883443063,-150.0,0.00023882,4]
[389874775,1759883443072,-213.42303972,0.0002389,2]
[389874776,1759883443082,-5561.0,0.000239,7]
[389874777,1759883443091,-500.0,0.00023919,2]
[389874778,1759883443100,-1106.74,0.00023919,2]
[389874779,1759883443109,-500.0,0.00023919,2]
[389874780,1759883443118,-185.82,0.00023938,2]
[389874781,1759883443127,-1271.05078306,0.00023938,2]
[389874782,1759883443137,-500.0,0.00023958,2]
[389874783,1759883443146,-570.0,0.00023959,2]
[389874784,1759883443155,-603.0,0.00023959,2]
[389874785,1759883443169,-1307.0,0.00023959,2]
[389874786,1759883443178,-1586.0,0.00023959,2]
[389874787,1759883443187,-815.0,0.00023959,2]
[389874788,1759883443197,-900.0,0.00023959,2]
[389874789,1759883443207,-2543.0,0.00023959,2]
[389874790,1759883443217,-4116.0,0.00023959,2]
[389874791,1759883443226,-3401.0,0.00023959,2]
[389874792,1759883443236,-1265.0,0.00023959,2]
[389874793,1759883443247,-6238.0,0.00023959,2]
[389874794,1759883443257,-160.06727978,0.00023973,2]
[389874795,1759883443267,-278.75,0.00023977,2]
[389874796,1759883443276,-151.0,0.00023997,7]
[389874797,1759883443286,-356.11899227,0.00024,2]
[389874798,1759883443295,-208.01600483,0.00024,2]
[389874799,1759883443304,-213.42303972,0.00024,2]
[389874800,1759883443314,-999.19,0.00024,2]
[389874801,1759883443323,-7000.09084204,0.00024,5]
[389874802,1759883443332,-500.0,0.00024019,2]
[389874803,1759883443342,-3559.43,0.00024019,2]
[389874804,1759883443351,-938.84,0.00024019,2]
[389874805,1759883443360,-500.0,0.00024019,2]
[389874806,1759883443370,-500.0,0.00024019,2]
[389874807,1759883443379,-500.0,0.00024019,2]
[389874808,1759883443389,-500.0,0.00024019,2]
[389874809,1759883443399,-500.0,0.00024019,2]
[389874810,1759883443408,-400.43010173,0.00024019,2]
[389874811,1759883443417,-500.0,0.00024019,2]
[389874812,1759883443427,-150.0,0.00024047,4]
[389874813,1759883443436,-150.0,0.00024047,4]
[389874814,1759883443446,-150.0,0.00024047,4]
[389874815,1759883443455,-150.0,0.00024047,4]
[389874816,1759883443465,-150.0,0.00024047,4]
[389874818,1759883443475,-2701.6307487,0.0002406,2]
[389874819,1759883443484,-213.42303972,0.00024082,2]
[389874820,1759883443493,-411.90061085,0.00024083,2]
[389874821,1759883443503,-174.7945346,0.00024114,9]
[389874822,1759883443512,-2000.0,0.00024116,2]
[389874823,1759883443529,-500.0,0.00024136,2]
[389874824,1759883443541,-500.0,0.00024136,2]
[389874826,1759883443550,-500.0,0.00024136,2]
[389874828,1759883443559,-500.0,0.00024136,2]
[389874830,1759883443569,-823.38,0.00024136,2]
[389874832,1759883443578,-500.0,0.00024136,2]
[389874834,1759883443587,-500.0,0.00024136,2]
[389874836,1759883443598,-500.0,0.00024136,2]
[389874838,1759883443608,-500.0,0.00024136,2]
[389874840,1759883443617,-500.0,0.00024136,2]
[389874842,1759883443626,-222.50127033,0.00024136,2]
[389874844,1759883443635,-160.06727978,0.00024137,2]
[389874846,1759883443644,-500.0,0.00024138,2]
[389874848,1759883443653,-500.0,0.00024138,2]
[389874850,1759883443662,-500.0,0.00024143,2]
[389874852,1759883443672,-500.0,0.00024143,2]
[389874854,1759883443682,-2115.19,0.00024143,2]
[389874856,1759883443691,-500.0,0.00024143,2]
[389874858,1759883443700,-500.0,0.00024143,2]
[389874860,1759883443709,-500.0,0.00024143,2]
[389874862,1759883443719,-500.0,0.00024143,2]
[389874864,1759883443729,-500.0,0.00024143,2]
[389874866,1759883443739,-500.0,0.00024143,2]
[389874868,1759883443749,-500.0,0.00024143,2]
[389874870,1759883443759,-549.16,0.00024143,2]
[389874872,1759883443768,-526.28,0.00024143,2]
[389874874,1759883443777,-500.0,0.00024143,2]
[389874876,1759883443787,-500.0,0.00024143,2]
[389874878,1759883443796,-500.0,0.00024143,2]
[389874880,1759883443807,-1209.38,0.00024143,2]
[389874882,1759883443817,-150.0,0.00024166,4]
[389874885,1759883443827,-277.300372,0.00024166,15]
[389874887,1759883443837,-213.42303972,0.00024192,2]
[389874889,1759883443847,-500.0,0.00024193,2]
[389874891,1759883443856,-1106.74,0.00024193,2]
[389874893,1759883443866,-500.0,0.00024193,2]
[389874895,1759883443875,-1000.0,0.00024247,2]
[389874897,1759883443885,-1000.0,0.00024247,2]
[389874899,1759883443894,-4964.25328,0.0002425,2]
[389874901,1759883443904,-150.0,0.00024255,4]
[389874903,1759883443913,-150.0,0.00024255,4]
[389874905,1759883443923,-1425.0,0.00024265,2]
[389874907,1759883443932,-160.06727978,0.00024274,2]
[389874909,1759883443942,-213.42303972,0.00024274,2]
[389874911,1759883443950,-574.44078285,0.00024284,2]
[389874913,1759883443960,-164.696,0.00024292,6]
[389874915,1759883443969,-3563.65,0.00024292,6]
[389874917,1759883443979,-549.70306401,0.00024293,2]
[389874919,1759883443989,-3559.43,0.00024293,2]
[389874921,1759883443998,-938.84,0.00024293,2]
[389874923,1759883444007,-156.12333128,0.00024293,2]
[389874925,1759883444017,-500.0,0.00024293,2]
[389874927,1759883444027,-500.0,0.00024293,2]
[389874929,1759883444036,-500.0,0.00024293,2]
[389874931,1759883444045,-500.0,0.00024293,2]
[389874933,1759883444054,-500.0,0.00024293,2]
[389874935,1759883444064,-356.11899227,0.000243,2]
[389874937,1759883444073,-208.01600483,0.000243,2]
[389874939,1759883444082,-500.0,0.00024304,2]
[389874941,1759883444092,-2000.0,0.00024304,2]
[389874943,1759883444101,-500.0,0.00024304,2]
[389874945,1759883444111,-500.0,0.00024304,2]
[389874947,1759883444121,-200.0,0.00024304,2]
[389874949,1759883444130,-1452.62946636,0.00024326,2]
[389874951,1759883444139,-2701.6307487,0.0002434,2]
[389874953,1759883444149,-800.53419291,0.0002437,2]
[389874955,1759883444159,-151.0,0.0002437,2]
[389874957,1759883444171,-150.0,0.00024379,4]
[389874959,1759883444181,-150.0,0.00024379,4]
[389874961,1759883444190,-150.0,0.00024379,4]
[389874963,1759883444201,-150.0,0.00024379,4]
[389874965,1759883444210,-150.0,0.00024379,4]
[389874967,1759883444219,-500.0,0.00024382,2]
[389874969,1759883444229,-500.0,0.00024382,2]
[389874971,1759883444239,-500.0,0.00024382,2]
[389874973,1759883444248,-314.77602015,0.00024382,2]
[389874975,1759883444257,-500.0,0.00024382,2]
[389874977,1759883444266,-605.27,0.00024382,2]
[389874979,1759883444276,-1181.2,0.00024382,2]
[389874981,1759883444285,-608.32,0.00024382,2]
[389874983,1759883444294,-500.0,0.00024382,2]
[389874985,1759883444303,-150.0,0.00024383,2]
[389874987,1759883444312,-500.0,0.00024383,2]
[389874989,1759883444321,-150.22453604,0.00024383,2]
[389874991,1759883444330,-150.0,0.00024383,2]
[389874993,1759883444339,-150.0,0.00024383,2]
[389874995,1759883444348,-500.0,0.00024383,2]
[389874997,1759883444357,-150.0,0.00024383,2]
[389874999,1759883444367,-153.2318465,0.00024383,2]
[389875001,1759883444377,-500.0,0.00024383,2]
[389875003,1759883444386,-500.0,0.00024383,2]
[389875005,1759883444394,-254.30704401,0.00024383,2]
[389875007,1759883444404,-150.0,0.00024383,2]
[389875009,1759883444413,-500.0,0.00024383,2]
[389875011,1759883444422,-500.0,0.00024383,2]
[389875013,1759883444431,-500.0,0.00024383,2]
[389875015,1759883444440,-500.0,0.00024383,2]
[389875016,1759883444449,-150.0,0.00024383,2]
[389875018,1759883444459,-150.0,0.00024383,2]
[389875021,1759883444468,-150.0,0.00024383,2]
[389875023,1759883444477,-500.0,0.00024383,2]
[389875025,1759883444487,-500.0,0.00024383,2]
[389875026,1759883444496,-522.0,0.00024383,2]
[389875028,1759883444505,-500.0,0.00024383,2]
[389875031,1759883444515,-500.0,0.00024383,2]
[389875032,1759883444524,-2536.0,0.00024383,2]
[389875035,1759883444533,-500.0,0.00024383,2]
[389875037,1759883444543,-1032.0,0.00024383,2]
[389875039,1759883444552,-150.0,0.00024383,2]
[389875040,1759883444561,-500.0,0.00024383,2]
[389875042,1759883444570,-150.0,0.00024383,2]
[389875045,1759883444580,-150.0,0.00024383,2]
[389875047,1759883444590,-150.0,0.00024383,2]
[389875069,1759883444791,-500.0,0.00024383,2]
[389875071,1759883444801,-150.0,0.00024383,2]
[389875074,1759883444811,-500.0,0.00024383,2]
[389875076,1759883444820,-150.0,0.00024383,2]
[389875078,1759883444830,-500.0,0.00024383,2]
[389875080,1759883444840,-150.0,0.00024383,2]
[389875081,1759883444848,-500.0,0.00024383,2]
[389875084,1759883444859,-150.0,0.00024383,2]
[389875086,1759883444868,-150.3140866,0.00024383,2]
[389875088,1759883444877,-150.49354393,0.00024383,2]
[389875090,1759883444887,-500.0,0.00024383,2]
[389875092,1759883444896,-150.0,0.00024383,2]
[389875094,1759883444905,-500.0,0.00024383,2]
[389875096,1759883444915,-500.0,0.00024383,2]
[389875098,1759883444925,-500.0,0.00024383,2]
[389875100,1759883444936,-150.0,0.00024383,2]
[389875102,1759883444945,-500.0,0.00024383,2]
[389875104,1759883444954,-150.0,0.00024383,2]
[389875106,1759883444964,-150.0,0.00024383,2]
[389875108,1759883444973,-500.0,0.00024383,2]
[389875110,1759883444983,-150.0,0.00024383,2]
[389875112,1759883444992,-574.0,0.00024383,2]
[389875114,1759883445002,-500.0,0.00024383,2]
[389875116,1759883445012,-500.0,0.0002439,2]
[389875118,1759883445021,-500.0,0.0002439,2]
[389875120,1759883445033,-500.0,0.0002439,2]
[389875122,1759883445042,-500.0,0.0002439,2]
[389875124,1759883445051,-500.0,0.0002439,2]
[389875125,1759883445061,-500.0,0.0002439,2]
[389875127,1759883445070,-500.0,0.0002439,2]
[389875130,1759883445080,-500.0,0.0002439,2]
[389875132,1759883445089,-500.0,0.0002439,2]
[389875133,1759883445098,-500.0,0.0002439,2]
[389875135,1759883445107,-199.41844451,0.0002439,2]
[389875138,1759883445116,-2001.69024318,0.0002439,2]
[389875140,1759883445125,-5000.0,0.0002439,2]
[389875141,1759883445135,-589.23384309,0.00024392,2]
[389875143,1759883445144,-608.2,0.000244,2]
[389875145,1759883445153,-1000.0,0.000244,2]
[389875147,1759883445167,-227.00855408,0.000244,4]
[389875149,1759883445176,-227.00855408,0.000244,4]
[389875152,1759883445185,-227.00855408,0.000244,4]
[389875154,1759883445194,-227.00855408,0.000244,4]
[389875156,1759883445203,-227.00855408,0.000244,4]
[389875157,1759883445212,-227.00855408,0.000244,4]
[389875159,1759883445221,-227.00855408,0.000244,4]
[389875161,1759883445230,-227.00855408,0.000244,4]
[389875163,1759883445245,-227.00855408,0.000244,4]
[389875165,1759883445255,-227.00855408,0.000244,4]
[389875168,1759883445266,-227.00855408,0.000244,4]
[389875170,1759883445276,-227.00855408,0.000244,4]
[389875172,1759883445285,-227.00855408,0.000244,4]
[389875174,1759883445294,-227.00855408,0.000244,4]
[389875176,1759883445303,-227.00855408,0.000244,4]
[389875178,1759883445311,-227.00855408,0.000244,4]
[389875180,1759883445320,-227.00855408,0.000244,4]
[389875182,1759883445329,-227.00855408,0.000244,4]
[389875184,1759883445338,-227.00855408,0.000244,4]
[389875186,1759883445347,-227.0,0.000244,4]
[389875188,1759883445356,-529.68662619,0.000244,4]
[389875190,1759883445365,-529.68662619,0.000244,4]
[389875192,1759883445374,-529.68662619,0.000244,4]
[389875194,1759883445383,-529.68662619,0.000244,4]
[389875196,1759883445392,-529.68662619,0.000244,4]
[389875198,1759883445401,-529.68662619,0.000244,4]
[389875200,1759883445410,-964.22148992,0.000244,2]
[389875202,1759883445419,-529.68662619,0.000244,4]
[389875203,1759883445428,-529.68662619,0.000244,4]
[389875205,1759883445438,-529.68662619,0.000244,4]
[389875208,1759883445447,-529.68662619,0.000244,4]
[389875210,1759883445456,-529.68662619,0.000244,4]
[389875212,1759883445466,-529.68662619,0.000244,4]
[389875214,1759883445475,-529.68662619,0.000244,4]
[389875215,1759883445484,-529.68662619,0.000244,4]
[389875218,1759883445494,-529.68662619,0.000244,4]
[389875219,1759883445508,-529.68662619,0.000244,4]
[389875221,1759883445517,-529.68662619,0.000244,4]
[389875223,1759883445527,-373.38388814,0.000244,4]
[389875225,1759883445538,-373.38388814,0.000244,4]
[389875228,1759883445547,-373.38388814,0.000244,4]
[389875229,1759883445556,-373.38388814,0.000244,4]
[389875231,1759883445565,-373.38388814,0.000244,4]
[389875233,1759883445574,-373.38388814,0.000244,4]
[389875235,1759883445583,-373.38388814,0.000244,4]
[389875237,1759883445592,-373.38388814,0.000244,4]
[389875239,1759883445601,-373.38388814,0.000244,4]
[389875242,1759883445611,-373.38388814,0.000244,4]
[389875244,1759883445620,-373.38388814,0.000244,4]
[389875246,1759883445629,-373.38388814,0.000244,4]
[389875248,1759883445638,-373.38388814,0.000244,4]
[389875250,1759883445648,-373.38388814,0.000244,4]
[389875252,1759883445657,-373.38388814,0.000244,4]
[389875254,1759883445666,-373.38388814,0.000244,4]
[389875256,1759883445678,-373.38388814,0.000244,4]
[389875259,1759883445687,-373.38388814,0.000244,4]
[389875261,1759883445696,-373.38388814,0.000244,4]
[389875263,1759883445705,-373.38,0.000244,4]
[389875264,1759883445714,-871.22907234,0.000244,4]
[389875267,1759883445724,-871.22907234,0.000244,4]
[389875269,1759883445734,-871.22907234,0.000244,4]
[389875271,1759883445743,-871.22907234,0.000244,4]
[389875273,1759883445753,-871.22907234,0.000244,4]
[389875275,1759883445763,-871.22907234,0.000244,4]
[389875277,1759883445772,-871.22907234,0.000244,4]
[389875279,1759883445782,-871.22907234,0.000244,4]
[389875281,1759883445791,-871.22907234,0.000244,4]
[389875283,1759883445800,-871.22907234,0.000244,4]
[389875285,1759883445809,-871.22907234,0.000244,4]
[389875287,1759883445819,-871.22907234,0.000244,4]
[389875289,1759883445828,-871.22907234,0.000244,4]
[389875291,1759883445837,-871.22907234,0.000244,4]
[389875293,1759883445847,-871.22907234,0.000244,4]
[389875295,1759883445856,-871.22907234,0.000244,4]
[389875297,1759883445866,-871.22907234,0.000244,4]
[389875299,1759883445875,-3620.19673244,0.000244,2]
[389875301,1759883445884,-191.7153325,0.000244,4]
[389875303,1759883445893,-191.7153325,0.000244,4]
[389875304,1759883445902,-191.7153325,0.000244,4]
[389875306,1759883445911,-191.7153325,0.000244,4]
[389875308,1759883445921,-191.7153325,0.000244,4]
[389875311,1759883445931,-191.7153325,0.000244,4]
[389875313,1759883445941,-191.7153325,0.000244,4]
[389875315,1759883445951,-191.7153325,0.000244,4]
[389875317,1759883445960,-191.7153325,0.000244,4]
[389875319,1759883445969,-191.7153325,0.000244,4]
[389875321,1759883445979,-191.7153325,0.000244,4]
[389875323,1759883445989,-191.7153325,0.000244,4]
[389875325,1759883445998,-191.7153325,0.000244,4]
[389875327,1759883446009,-191.7153325,0.000244,4]
[389875329,1759883446019,-191.7153325,0.000244,4]
[389875331,1759883446028,-191.7153325,0.000244,4]
[389875333,1759883446037,-191.7153325,0.000244,4]
[389875335,1759883446047,-191.7153325,0.000244,4]
[389875337,1759883446057,-191.7153325,0.000244,4]
[389875339,1759883446068,-191.71,0.000244,4]
[389875341,1759883446077,-447.33577584,0.000244,4]
[389875343,1759883446087,-447.33577584,0.000244,4]
[389875345,1759883446096,-447.33577584,0.000244,4]
[389875347,1759883446106,-447.33577584,0.000244,4]
[389875349,1759883446115,-447.33577584,0.000244,4]
[389875351,1759883446124,-199.42434996,0.000244,4]
[389875353,1759883446133,-447.33577584,0.000244,4]
[389875355,1759883446143,-447.33577584,0.000244,4]
[389875357,1759883446152,-447.33577584,0.000244,4]
[389875359,1759883446164,-447.33577584,0.000244,4]
[389875361,1759883446173,-447.33577584,0.000244,4]
[389875363,1759883446182,-447.33577584,0.000244,4]
[389875365,1759883446191,-447.33577584,0.000244,4]
[389875367,1759883446200,-447.33577584,0.000244,4]
[389875368,1759883446209,-447.33577584,0.000244,4]
[389875370,1759883446219,-447.33577584,0.000244,4]
[389875372,1759883446228,-447.33577584,0.000244,4]
[389875374,1759883446238,-447.33577584,0.000244,4]
[389875376,1759883446246,-220.12447168,0.000244,2]
[389875378,1759883446255,-1251.0,0.000244,2]
[389875380,1759883446264,-529.68662619,0.00024402,4]
[389875382,1759883446274,-871.22907234,0.00024402,4]
[389875384,1759883446283,-447.33577584,0.00024402,4]
[389875386,1759883446292,-1425.0,0.00024408,2]
[389875388,1759883446301,-500.0,0.0002441,2]
[389875390,1759883446311,-500.0,0.0002441,2]
[389875392,1759883446321,-500.0,0.0002441,2]
[389875394,1759883446330,-500.0,0.0002441,2]
[389875396,1759883446339,-823.38,0.0002441,2]
[389875398,1759883446348,-500.0,0.0002441,2]
[389875400,1759883446358,-500.0,0.0002441,2]
[389875402,1759883446367,-500.0,0.0002441,2]
[389875404,1759883446376,-500.0,0.0002441,2]
[389875406,1759883446385,-500.0,0.0002441,2]
[389875408,1759883446395,-500.0,0.0002441,2]
[389875410,1759883446403,-500.0,0.00024411,2]
[389875412,1759883446413,-500.0,0.00024411,2]
[389875414,1759883446422,-500.0,0.00024411,2]
[389875416,1759883446431,-500.0,0.00024411,2]
[389875418,1759883446440,-500.0,0.00024411,2]
[389875420,1759883446450,-500.0,0.00024411,2]
[389875422,1759883446459,-500.0,0.00024411,2]
[389875424,1759883446467,-500.0,0.00024411,2]
[389875426,1759883446476,-500.0,0.00024411,2]
[389875428,1759883446487,-500.0,0.00024411,2]
[389875430,1759883446496,-500.0,0.00024411,2]
[389875432,1759883446505,-500.0,0.00024411,2]
[389875434,1759883446514,-500.0,0.00024411,2]
[389875436,1759883446523,-500.0,0.00024411,2]
[389875438,1759883446532,-500.0,0.00024411,2]
[389875440,1759883446541,-500.0,0.00024411,2]
[389875442,1759883446553,-500.0,0.00024411,2]
[389875444,1759883446562,-500.0,0.00024411,2]
[389875446,1759883446571,-500.0,0.00024411,2]
[389875448,1759883446580,-500.0,0.00024411,2]
[389875450,1759883446589,-500.0,0.00024411,2]
[389875452,1759883446598,-500.0,0.00024411,2]
[389875454,1759883446607,-500.0,0.00024411,2]
[389875456,1759883446616,-500.0,0.00024411,2]
[389875458,1759883446626,-500.0,0.00024411,2]
[389875460,1759883446635,-500.0,0.00024411,2]
[389875462,1759883446644,-500.0,0.00024411,2]
[389875464,1759883446655,-500.0,0.00024411,2]
[389875466,1759883446665,-500.0,0.00024411,2]
[389875468,1759883446674,-500.0,0.00024411,2]